[Event "Late-Titled-Tuesday-Blitz-August-29-2023"]
[Site "Chess.com"]
[Date "2023.08.29"]
[Round "5"]
[White "Apocalyps999"]
[Black "HajiyevKanan"]
[Result "0-1"]
[WhiteElo "2325"]
[BlackElo "2478"]
[TimeControl "180+1"]
[EndTime "14:54:06 PDT"]
[Termination "HajiyevKanan won on time"]

1. e4 {[%clk 0:03:00.9]} 1... c6 {[%clk 0:02:52.5]} 2. c4 {[%clk 0:02:57.3]}
2... d5 {[%clk 0:02:53.4]} 3. exd5 {[%clk 0:02:58.2]} 3... cxd5 {[%clk
0:02:54.3]} 4. cxd5 {[%clk 0:02:59.1]} 4... Nf6 {[%clk 0:02:54.7]} 5. Nc3 {[%clk
0:02:59.7]} 5... Nxd5 {[%clk 0:02:55.3]} 6. Nf3 {[%clk 0:03:00.3]} 6... e6
{[%clk 0:02:55.4]} 7. d4 {[%clk 0:02:58.7]} 7... Nc6 {[%clk 0:02:55.8]} 8. Bd3
{[%clk 0:02:58.1]} 8... Bb4 {[%clk 0:02:56]} 9. O-O {[%clk 0:02:58.2]} 9... O-O
{[%clk 0:02:54.1]} 10. Bc2 {[%clk 0:02:49.1]} 10... g6 {[%clk 0:02:46.5]} 11.
Qd3 {[%clk 0:02:37.8]} 11... Be7 {[%clk 0:02:41.8]} 12. a3 {[%clk 0:02:37.2]}
12... b6 {[%clk 0:02:39.4]} 13. Nxd5 {[%clk 0:02:27.5]} 13... Qxd5 {[%clk
0:02:39]} 14. Bb3 {[%clk 0:02:25.2]} 14... Qf5 {[%clk 0:02:32.9]} 15. Qxf5
{[%clk 0:02:10.7]} 15... exf5 {[%clk 0:02:32.9]} 16. d5 {[%clk 0:02:04.5]} 16...
Na5 {[%clk 0:02:32.3]} 17. Ba2 {[%clk 0:02:03.7]} 17... Rd8 {[%clk 0:02:28.3]}
18. Bf4 {[%clk 0:01:57.1]} 18... Bf6 {[%clk 0:02:27]} 19. Rab1 {[%clk
0:01:50.3]} 19... Ba6 {[%clk 0:02:23.7]} 20. Rfd1 {[%clk 0:01:42.3]} 20... Bc4
{[%clk 0:02:22.9]} 21. b3 {[%clk 0:01:29.4]} 21... Be2 {[%clk 0:02:23]} 22. Rd2
{[%clk 0:01:29.2]} 22... Bxf3 {[%clk 0:02:22.1]} 23. gxf3 {[%clk 0:01:30.1]}
23... Rac8 {[%clk 0:02:20]} 24. Be3 {[%clk 0:00:29.3]} 24... Be5 {[%clk
0:02:06.4]} 25. f4 {[%clk 0:00:28.5]} 25... Bd6 {[%clk 0:02:04.9]} 26. b4 {[%clk
0:00:24.7]} 26... Nc4 {[%clk 0:02:04.5]} 27. Bxc4 {[%clk 0:00:24.4]} 27... Rxc4
{[%clk 0:02:05.4]} 28. Rd3 {[%clk 0:00:20.4]} 28... Rdc8 {[%clk 0:02:04.6]} 29.
Re1 {[%clk 0:00:19.5]} 29... Kf8 {[%clk 0:01:49.1]} 30. Kg2 {[%clk 0:00:19.1]}
30... Rc3 {[%clk 0:01:43.9]} 31. Red1 {[%clk 0:00:16.9]} 31... Rxd3 {[%clk
0:01:42.7]} 32. Rxd3 {[%clk 0:00:17.8]} 32... Rc4 {[%clk 0:01:41.4]} 33. Kf3
{[%clk 0:00:18.2]} 33... Ke7 {[%clk 0:01:40.2]} 34. Bd2 {[%clk 0:00:16.6]} 34...
b5 {[%clk 0:01:35.9]} 35. h4 {[%clk 0:00:15.9]} 35... h5 {[%clk 0:01:35.6]} 36.
Be3 {[%clk 0:00:15.8]} 36... Kd7 {[%clk 0:01:35.3]} 37. Kg2 {[%clk 0:00:11]}
37... a6 {[%clk 0:01:33.7]} 38. Kf3 {[%clk 0:00:10.5]} 38... Rc2 {[%clk
0:01:33.1]} 39. Kg3 {[%clk 0:00:08.8]} 39... Re2 {[%clk 0:01:32.7]} 40. Kf3
{[%clk 0:00:08.8]} 40... Re1 {[%clk 0:01:33.3]} 41. Kg3 {[%clk 0:00:08.6]} 41...
Rg1+ {[%clk 0:01:33.3]} 42. Kh2 {[%clk 0:00:08.3]} 42... Ra1 {[%clk 0:01:30.8]}
43. Kg3 {[%clk 0:00:08]} 43... Be7 {[%clk 0:01:29.9]} 44. Bc5 {[%clk 0:00:03.3]}
44... Bf6 {[%clk 0:01:22.3]} 0-1

[Event "Late-Titled-Tuesday-Blitz-August-29-2023"]
[Site "Chess.com"]
[Date "2023.08.29"]
[Round "5"]
[White "GMG"]
[Black "Firouzja2003"]
[Result "0-1"]
[WhiteElo "2769"]
[BlackElo "3103"]
[TimeControl "180+1"]
[EndTime "14:54:08 PDT"]
[Termination "Firouzja2003 won on time"]

1. d4 {[%clk 0:02:58.7]} 1... Nf6 {[%clk 0:02:59.9]} 2. c4 {[%clk 0:02:58.6]}
2... g6 {[%clk 0:03:00.8]} 3. Nf3 {[%clk 0:02:55.7]} 3... Bg7 {[%clk 0:03:01]}
4. g3 {[%clk 0:02:56.2]} 4... O-O {[%clk 0:03:01.7]} 5. Bg2 {[%clk 0:02:56.7]}
5... d6 {[%clk 0:03:02.6]} 6. Nc3 {[%clk 0:02:56.8]} 6... Nbd7 {[%clk
0:03:03.5]} 7. O-O {[%clk 0:02:56.9]} 7... e5 {[%clk 0:03:04.4]} 8. e4 {[%clk
0:02:57.5]} 8... c6 {[%clk 0:03:04.9]} 9. h3 {[%clk 0:02:57.7]} 9... Re8 {[%clk
0:03:05.4]} 10. d5 {[%clk 0:02:55.6]} 10... Nc5 {[%clk 0:03:03.2]} 11. Re1
{[%clk 0:02:53.6]} 11... a5 {[%clk 0:02:56.1]} 12. b3 {[%clk 0:02:26.9]} 12...
cxd5 {[%clk 0:02:54.6]} 13. cxd5 {[%clk 0:02:26.6]} 13... b6 {[%clk 0:02:55.3]}
14. Rb1 {[%clk 0:02:20.5]} 14... Ba6 {[%clk 0:02:55.1]} 15. Bf1 {[%clk
0:02:20.5]} 15... Qc8 {[%clk 0:02:51]} 16. Bxa6 {[%clk 0:02:05.1]} 16... Qxa6
{[%clk 0:02:50.2]} 17. Ba3 {[%clk 0:02:05.5]} 17... Rec8 {[%clk 0:02:47.1]} 18.
Bxc5 {[%clk 0:01:46.3]} 18... Rxc5 {[%clk 0:02:46.4]} 19. Na4 {[%clk 0:01:45.2]}
19... Rc7 {[%clk 0:02:46.5]} 20. Qe2 {[%clk 0:01:42.4]} 20... Qxe2 {[%clk
0:02:42.3]} 21. Rxe2 {[%clk 0:01:43.3]} 21... b5 {[%clk 0:02:42.7]} 22. Nb2
{[%clk 0:01:42.2]} 22... Rac8 {[%clk 0:02:42.6]} 23. a4 {[%clk 0:01:36.2]} 23...
bxa4 {[%clk 0:02:38.3]} 24. Nxa4 {[%clk 0:01:34]} 24... Rc2 {[%clk 0:02:37.1]}
25. Rb2 {[%clk 0:01:29.9]} 25... Rxe2 {[%clk 0:02:34.6]} 26. Rxe2 {[%clk
0:01:30.8]} 26... Rc1+ {[%clk 0:02:31.8]} 27. Kg2 {[%clk 0:01:30.7]} 27... Rb1
{[%clk 0:02:32.3]} 28. Nd2 {[%clk 0:01:29.4]} 28... Rd1 {[%clk 0:02:14.9]} 29.
Nc4 {[%clk 0:01:26.8]} 29... Rd4 {[%clk 0:02:14.4]} 30. f3 {[%clk 0:01:22.1]}
30... Rd3 {[%clk 0:01:35.3]} 31. Nxa5 {[%clk 0:01:20.2]} 31... Nh5 {[%clk
0:01:35.6]} 32. b4 {[%clk 0:01:17.1]} 32... f5 {[%clk 0:01:23.6]} 33. Nb2 {[%clk
0:00:48.6]} 33... Rc3 {[%clk 0:01:15.8]} 34. exf5 {[%clk 0:00:21.3]} 34... e4
{[%clk 0:01:11.3]} 35. fxe4 {[%clk 0:00:16.9]} 35... Rxg3+ {[%clk 0:01:11.3]}
36. Kf2 {[%clk 0:00:10.5]} 36... Bd4+ {[%clk 0:01:10.7]} 37. Ke1 {[%clk
0:00:09.6]} 37... Nf4 {[%clk 0:01:11.2]} 38. Rc2 {[%clk 0:00:08.7]} 38... Be3
{[%clk 0:00:57.4]} 39. Rc8+ {[%clk 0:00:02.3]} 39... Kg7 {[%clk 0:00:55.9]} 0-1

[Event "Late-Titled-Tuesday-Blitz-August-29-2023"]
[Site "Chess.com"]
[Date "2023.08.29"]
[Round "5"]
[White "AryanTari"]
[Black "Ajedrez_con_German"]
[Result "1-0"]
[WhiteElo "2924"]
[BlackElo "2661"]
[TimeControl "180+1"]
[EndTime "14:54:11 PDT"]
[Termination "AryanTari won by resignation"]

1. e4 {[%clk 0:03:00.9]} 1... e5 {[%clk 0:02:53.1]} 2. Nf3 {[%clk 0:03:00.4]}
2... Nf6 {[%clk 0:02:53.1]} 3. d3 {[%clk 0:02:44.4]} 3... Nc6 {[%clk 0:02:52.6]}
4. g3 {[%clk 0:02:44.7]} 4... Bc5 {[%clk 0:02:49.4]} 5. Bg2 {[%clk 0:02:43.5]}
5... d6 {[%clk 0:02:49.5]} 6. O-O {[%clk 0:02:42.6]} 6... O-O {[%clk 0:02:49.7]}
7. c3 {[%clk 0:02:37]} 7... a6 {[%clk 0:02:46.1]} 8. h3 {[%clk 0:02:34.4]} 8...
h6 {[%clk 0:02:40.4]} 9. Nbd2 {[%clk 0:02:04]} 9... Re8 {[%clk 0:02:33.3]} 10.
a4 {[%clk 0:02:01.7]} 10... d5 {[%clk 0:02:30.5]} 11. b4 {[%clk 0:02:01.5]}
11... Bb6 {[%clk 0:02:27.3]} 12. Qc2 {[%clk 0:01:55.6]} 12... d4 {[%clk
0:02:23.7]} 13. Bb2 {[%clk 0:01:54.3]} 13... dxc3 {[%clk 0:02:22.8]} 14. Bxc3
{[%clk 0:01:54.5]} 14... Nd7 {[%clk 0:01:54.2]} 15. Nc4 {[%clk 0:01:51.9]} 15...
f6 {[%clk 0:01:47.6]} 16. b5 {[%clk 0:01:42.8]} 16... axb5 {[%clk 0:01:45.2]}
17. axb5 {[%clk 0:01:42.8]} 17... Rxa1 {[%clk 0:01:45.8]} 18. Rxa1 {[%clk
0:01:41.6]} 18... Ne7 {[%clk 0:01:39.6]} 19. Ra8 {[%clk 0:01:35.3]} 19... Nc5
{[%clk 0:01:31.4]} 20. d4 {[%clk 0:01:33.7]} 20... exd4 {[%clk 0:01:30.3]} 21.
Nxd4 {[%clk 0:01:26.7]} 21... Ng6 {[%clk 0:01:19.4]} 22. f4 {[%clk 0:00:47.8]}
22... Qe7 {[%clk 0:01:17.5]} 23. Nxb6 {[%clk 0:00:45.7]} 23... cxb6 {[%clk
0:01:17.4]} 24. e5 {[%clk 0:00:45.1]} 24... Nf8 {[%clk 0:00:49]} 25. Nf5 {[%clk
0:00:34.2]} 25... Bxf5 {[%clk 0:00:48]} 26. Rxe8 {[%clk 0:00:34.3]} 26... Qxe8
{[%clk 0:00:38.8]} 27. Qxf5 {[%clk 0:00:34.5]} 27... fxe5 {[%clk 0:00:27.6]} 28.
Bd5+ {[%clk 0:00:34.1]} 28... Nce6 {[%clk 0:00:17.5]} 29. Qxe5 {[%clk
0:00:31.7]} 29... Qd7 {[%clk 0:00:11.8]} 30. f5 {[%clk 0:00:31.4]} 1-0

[Event "Late-Titled-Tuesday-Blitz-August-29-2023"]
[Site "Chess.com"]
[Date "2023.08.29"]
[Round "5"]
[White "albi1999"]
[Black "JSlaby"]
[Result "0-1"]
[WhiteElo "2674"]
[BlackElo "2523"]
[TimeControl "180+1"]
[EndTime "14:54:11 PDT"]
[Termination "JSlaby won by resignation"]

1. d4 {[%clk 0:02:52.8]} 1... Nf6 {[%clk 0:02:57.7]} 2. Nf3 {[%clk 0:02:51.7]}
2... g6 {[%clk 0:02:55.2]} 3. c4 {[%clk 0:02:49.8]} 3... Bg7 {[%clk 0:02:55.1]}
4. Nc3 {[%clk 0:02:41.8]} 4... O-O {[%clk 0:02:54.9]} 5. Bg5 {[%clk 0:02:41.2]}
5... c5 {[%clk 0:02:49.4]} 6. d5 {[%clk 0:02:36.4]} 6... d6 {[%clk 0:02:48.9]}
7. e4 {[%clk 0:02:34.9]} 7... b5 {[%clk 0:02:48.2]} 8. cxb5 {[%clk 0:02:33.2]}
8... a6 {[%clk 0:02:47.8]} 9. bxa6 {[%clk 0:02:33.4]} 9... Qa5 {[%clk
0:02:46.1]} 10. Qd2 {[%clk 0:02:28.4]} 10... Nbd7 {[%clk 0:02:41.9]} 11. Be2
{[%clk 0:02:18.9]} 11... Bxa6 {[%clk 0:02:41.6]} 12. O-O {[%clk 0:02:18.7]}
12... Nxe4 {[%clk 0:02:39.2]} 13. Nxe4 {[%clk 0:02:17.3]} 13... Qxd2 {[%clk
0:02:40.1]} 14. Nfxd2 {[%clk 0:02:12.2]} 14... Bxe2 {[%clk 0:02:39.9]} 15. Rfe1
{[%clk 0:02:12.9]} 15... Bd3 {[%clk 0:02:31.1]} 16. Bxe7 {[%clk 0:02:11.3]}
16... Rfb8 {[%clk 0:02:26]} 17. Bxd6 {[%clk 0:01:48.6]} 17... Rxb2 {[%clk
0:02:24.2]} 18. Nf3 {[%clk 0:01:43.1]} 18... c4 {[%clk 0:02:07.4]} 19. a4 {[%clk
0:01:36.8]} 19... Rb6 {[%clk 0:01:54.2]} 20. Bc5 {[%clk 0:01:08.8]} 20... Bxe4
{[%clk 0:01:50]} 21. Bxb6 {[%clk 0:01:07.2]} 21... Nxb6 {[%clk 0:01:50.9]} 22.
Rad1 {[%clk 0:00:43.2]} 22... Bxd5 {[%clk 0:01:43]} 23. a5 {[%clk 0:00:38.8]}
23... Rxa5 {[%clk 0:01:39.2]} 24. Re8+ {[%clk 0:00:37.9]} 24... Bf8 {[%clk
0:01:39]} 25. Rb8 {[%clk 0:00:34.9]} 25... Nd7 {[%clk 0:01:30.2]} 26. Rd8 {[%clk
0:00:32.8]} 26... Nf6 {[%clk 0:01:30.5]} 27. Ne5 {[%clk 0:00:28.2]} 27... Kg7
{[%clk 0:01:26.7]} 28. Rc8 {[%clk 0:00:17.5]} 28... Rc5 {[%clk 0:01:24.5]} 29.
Rxc5 {[%clk 0:00:15.3]} 29... Bxc5 {[%clk 0:01:25.4]} 30. Nd7 {[%clk 0:00:14.9]}
30... Nxd7 {[%clk 0:01:17.8]} 31. Rxd5 {[%clk 0:00:14.4]} 31... c3 {[%clk
0:01:17.9]} 32. Rd3 {[%clk 0:00:11]} 32... Nf6 {[%clk 0:00:38.3]} 33. Rxc3
{[%clk 0:00:11.2]} 33... Bxf2+ {[%clk 0:00:38.3]} 34. Kf1 {[%clk 0:00:11.8]}
34... Bd4 {[%clk 0:00:36.7]} 35. Rc4 {[%clk 0:00:12.7]} 35... Be5 {[%clk
0:00:36.7]} 36. Ke2 {[%clk 0:00:13.6]} 36... Bxh2 {[%clk 0:00:36]} 0-1

[Event "Late-Titled-Tuesday-Blitz-August-29-2023"]
[Site "Chess.com"]
[Date "2023.08.29"]
[Round "5"]
[White "IngOscarArdila"]
[Black "Sinquefield"]
[Result "0-1"]
[WhiteElo "2300"]
[BlackElo "2433"]
[TimeControl "180+1"]
[EndTime "14:54:11 PDT"]
[Termination "Sinquefield won on time"]

1. d4 {[%clk 0:02:53.9]} 1... d6 {[%clk 0:02:58.4]} 2. Nf3 {[%clk 0:02:53.3]}
2... Nf6 {[%clk 0:02:58.9]} 3. c4 {[%clk 0:02:53.5]} 3... Nbd7 {[%clk
0:02:59.8]} 4. Nc3 {[%clk 0:02:53.4]} 4... e5 {[%clk 0:03:00.7]} 5. dxe5 {[%clk
0:02:53]} 5... dxe5 {[%clk 0:03:01.6]} 6. e3 {[%clk 0:02:52.7]} 6... c6 {[%clk
0:03:01.5]} 7. Be2 {[%clk 0:02:52.6]} 7... Be7 {[%clk 0:03:02.2]} 8. O-O {[%clk
0:02:52.5]} 8... O-O {[%clk 0:03:03.1]} 9. Qc2 {[%clk 0:02:52.8]} 9... Qc7
{[%clk 0:03:03.6]} 10. e4 {[%clk 0:02:51]} 10... Nc5 {[%clk 0:03:02.9]} 11. h3
{[%clk 0:02:50.8]} 11... a5 {[%clk 0:03:02.8]} 12. Be3 {[%clk 0:02:49.7]} 12...
h6 {[%clk 0:03:01.7]} 13. Rfd1 {[%clk 0:02:49.1]} 13... Be6 {[%clk 0:03:02.2]}
14. Rd2 {[%clk 0:02:47.5]} 14... Rfd8 {[%clk 0:03:02.1]} 15. Rad1 {[%clk
0:02:47.6]} 15... Rxd2 {[%clk 0:03:02]} 16. Rxd2 {[%clk 0:02:47]} 16... Re8
{[%clk 0:02:35.6]} 17. a3 {[%clk 0:02:32.1]} 17... Bc8 {[%clk 0:02:34.5]} 18. b4
{[%clk 0:02:27.8]} 18... axb4 {[%clk 0:02:34.1]} 19. axb4 {[%clk 0:02:28.1]}
19... Ne6 {[%clk 0:02:35]} 20. c5 {[%clk 0:02:26.3]} 20... Nh5 {[%clk
0:02:33.8]} 21. g3 {[%clk 0:02:21.3]} 21... Nf6 {[%clk 0:02:15.7]} 22. Bf1
{[%clk 0:02:15.8]} 22... Nh7 {[%clk 0:02:14.7]} 23. Na4 {[%clk 0:02:10.2]} 23...
Nhg5 {[%clk 0:02:11.9]} 24. Nh4 {[%clk 0:02:01.7]} 24... Nd4 {[%clk 0:02:02.2]}
25. Bxd4 {[%clk 0:01:57.6]} 25... exd4 {[%clk 0:02:03.1]} 26. f4 {[%clk
0:01:43.2]} 26... Nxh3+ {[%clk 0:01:51]} 27. Kh2 {[%clk 0:01:42.3]} 27... Nxf4
{[%clk 0:01:38.8]} 28. Nf5 {[%clk 0:01:31.5]} 28... Bxf5 {[%clk 0:01:33.4]} 29.
exf5 {[%clk 0:01:31.8]} 29... Nh5 {[%clk 0:01:28]} 30. Qd3 {[%clk 0:01:29.4]}
30... Bh4 {[%clk 0:01:25]} 31. Rg2 {[%clk 0:01:28.8]} 31... Nxg3 {[%clk
0:01:20.2]} 32. Rxg3 {[%clk 0:01:28.6]} 32... Re3 {[%clk 0:01:20.3]} 33. Qxd4
{[%clk 0:01:28.1]} 33... Qxg3+ {[%clk 0:01:19]} 34. Kh1 {[%clk 0:01:28.5]} 34...
Re1 {[%clk 0:01:04]} 35. Qc4 {[%clk 0:01:12.2]} 35... Qf3+ {[%clk 0:00:49]} 36.
Kg1 {[%clk 0:01:12.5]} 36... Qf2+ {[%clk 0:00:47.7]} 0-1

[Event "Late-Titled-Tuesday-Blitz-August-29-2023"]
[Site "Chess.com"]
[Date "2023.08.29"]
[Round "5"]
[White "BozeKat"]
[Black "Jojo_898"]
[Result "0-1"]
[WhiteElo "2089"]
[BlackElo "2364"]
[TimeControl "180+1"]
[EndTime "14:54:11 PDT"]
[Termination "Jojo_898 won on time"]

1. c4 {[%clk 0:03:00.9]} 1... Nf6 {[%clk 0:02:58.4]} 2. g3 {[%clk 0:03:00.9]}
2... e6 {[%clk 0:02:51.6]} 3. Bg2 {[%clk 0:03:01.4]} 3... d5 {[%clk 0:02:52.1]}
4. Nf3 {[%clk 0:03:01.4]} 4... c6 {[%clk 0:02:50]} 5. O-O {[%clk 0:02:54.1]}
5... Bd6 {[%clk 0:02:49.1]} 6. Qc2 {[%clk 0:02:48.2]} 6... O-O {[%clk
0:02:48.1]} 7. d4 {[%clk 0:02:46.8]} 7... Ne4 {[%clk 0:02:46.9]} 8. Nc3 {[%clk
0:02:41.5]} 8... f5 {[%clk 0:02:46]} 9. Ne5 {[%clk 0:02:33.1]} 9... Nd7 {[%clk
0:02:41]} 10. Bf4 {[%clk 0:02:23.6]} 10... g5 {[%clk 0:02:27.1]} 11. Nxd7 {[%clk
0:02:21.8]} 11... Qxd7 {[%clk 0:02:25.3]} 12. Be5 {[%clk 0:02:13]} 12... Bxe5
{[%clk 0:02:15.1]} 13. dxe5 {[%clk 0:02:12.8]} 13... Qc7 {[%clk 0:02:15.4]} 14.
f4 {[%clk 0:01:58]} 14... Qb6+ {[%clk 0:02:10.7]} 15. e3 {[%clk 0:01:20.6]}
15... Qxe3+ {[%clk 0:02:09.9]} 16. Kh1 {[%clk 0:01:20.3]} 16... gxf4 {[%clk
0:01:49.7]} 17. Bxe4 {[%clk 0:01:06.4]} 17... dxe4 {[%clk 0:01:37.3]} 18. Rxf4
{[%clk 0:00:51.3]} 18... Bd7 {[%clk 0:01:29.2]} 19. Rd1 {[%clk 0:00:48.3]} 19...
Be8 {[%clk 0:01:25.1]} 20. Qd2 {[%clk 0:00:46.3]} 20... Qxd2 {[%clk 0:01:08.4]}
21. Rxd2 {[%clk 0:00:47.2]} 21... Bh5 {[%clk 0:01:06]} 22. Rf1 {[%clk
0:00:19.5]} 22... Rad8 {[%clk 0:01:04.5]} 23. Rxd8 {[%clk 0:00:12.5]} 23... Rxd8
{[%clk 0:01:05.4]} 24. Rf2 {[%clk 0:00:12.5]} 24... Rd4 {[%clk 0:00:54.1]} 25.
b3 {[%clk 0:00:11.7]} 25... Rd3 {[%clk 0:00:54]} 26. Rc2 {[%clk 0:00:05]} 26...
e3 {[%clk 0:00:47.1]} 27. Kg2 {[%clk 0:00:03.1]} 27... Rd2+ {[%clk 0:00:43.1]}
28. Rxd2 {[%clk 0:00:03.5]} 28... exd2 {[%clk 0:00:44]} 29. Kf2 {[%clk
0:00:02.8]} 29... d1=Q {[%clk 0:00:44.1]} 30. Nxd1 {[%clk 0:00:03]} 30... Bxd1
{[%clk 0:00:44.7]} 31. Ke3 {[%clk 0:00:03]} 31... Kf7 {[%clk 0:00:42.5]} 32. Kf4
{[%clk 0:00:02.9]} 32... Bc2 {[%clk 0:00:42.4]} 33. Kg5 {[%clk 0:00:03]} 33...
Bb1 {[%clk 0:00:42.6]} 0-1

[Event "Late-Titled-Tuesday-Blitz-August-29-2023"]
[Site "Chess.com"]
[Date "2023.08.29"]
[Round "5"]
[White "HrvojeZagreb"]
[Black "aqibjbutt"]
[Result "0-1"]
[WhiteElo "2248"]
[BlackElo "2000"]
[TimeControl "180+1"]
[EndTime "14:54:15 PDT"]
[Termination "aqibjbutt won by resignation"]

1. f4 {[%clk 0:02:56.9]} 1... d5 {[%clk 0:02:59.2]} 2. b3 {[%clk 0:02:56.9]}
2... Nf6 {[%clk 0:02:58.4]} 3. Bb2 {[%clk 0:02:57.2]} 3... g6 {[%clk 0:02:59]}
4. Nf3 {[%clk 0:02:56.8]} 4... Bg7 {[%clk 0:02:58.2]} 5. e3 {[%clk 0:02:57.3]}
5... O-O {[%clk 0:02:58.1]} 6. d3 {[%clk 0:02:56.8]} 6... a5 {[%clk 0:02:54.6]}
7. a4 {[%clk 0:02:56.2]} 7... Nc6 {[%clk 0:02:51.3]} 8. Be2 {[%clk 0:02:52]}
8... Nb4 {[%clk 0:02:43.3]} 9. O-O {[%clk 0:02:46.5]} 9... Ng4 {[%clk 0:02:41]}
10. Bxg7 {[%clk 0:02:39.9]} 10... Kxg7 {[%clk 0:02:10.1]} 11. Qd2 {[%clk
0:02:36.1]} 11... Kg8 {[%clk 0:01:41.8]} 12. Ne5 {[%clk 0:02:21.2]} 12... Nxe3
{[%clk 0:01:35.3]} 13. Qxe3 {[%clk 0:02:18.5]} 13... Nxc2 {[%clk 0:01:35.4]} 14.
Qd2 {[%clk 0:02:15.9]} 14... Nxa1 {[%clk 0:01:35.4]} 15. Qb2 {[%clk 0:02:10.9]}
15... c6 {[%clk 0:01:29.3]} 16. Qxa1 {[%clk 0:02:06.6]} 16... Qb6+ {[%clk
0:01:29.3]} 17. Kh1 {[%clk 0:01:57.5]} 17... Qxb3 {[%clk 0:01:10.1]} 18. Nd2
{[%clk 0:01:56.1]} 18... Qb6 {[%clk 0:00:59.8]} 19. Rb1 {[%clk 0:01:44]} 19...
Qe3 {[%clk 0:00:59.4]} 20. Bg4 {[%clk 0:01:24.6]} 20... Qxd2 {[%clk 0:00:45.1]}
21. Bxc8 {[%clk 0:01:23.8]} 21... Rfxc8 {[%clk 0:00:41.4]} 22. Rxb7 {[%clk
0:01:15.8]} 22... Rcb8 {[%clk 0:00:28.5]} 23. Rxb8+ {[%clk 0:01:06.8]} 23...
Rxb8 {[%clk 0:00:27.6]} 24. Nxc6 {[%clk 0:01:06.5]} 24... Rb2 {[%clk 0:00:26.2]}
25. Qg1 {[%clk 0:01:00.3]} 25... Qc2 {[%clk 0:00:25.4]} 26. Nxe7+ {[%clk
0:00:58.7]} 26... Kf8 {[%clk 0:00:20.5]} 27. Nxd5 {[%clk 0:00:58.4]} 27... Rb1
{[%clk 0:00:20.6]} 28. h3 {[%clk 0:00:48.1]} 28... Rxg1+ {[%clk 0:00:19.5]} 29.
Kxg1 {[%clk 0:00:49]} 29... Qb1+ {[%clk 0:00:15.1]} 30. Kh2 {[%clk 0:00:48.3]}
30... Qxd3 {[%clk 0:00:15]} 31. Nb6 {[%clk 0:00:46]} 31... Qd6 {[%clk 0:00:13]}
32. Nc8 {[%clk 0:00:42.4]} 32... Qxf4+ {[%clk 0:00:12.9]} 33. g3 {[%clk
0:00:42.1]} 33... Qc7 {[%clk 0:00:12.8]} 0-1

[Event "Late-Titled-Tuesday-Blitz-August-29-2023"]
[Site "Chess.com"]
[Date "2023.08.29"]
[Round "5"]
[White "Der_Honigdachs"]
[Black "gordonzyxu"]
[Result "1-0"]
[WhiteElo "2507"]
[BlackElo "2110"]
[TimeControl "180+1"]
[EndTime "14:54:16 PDT"]
[Termination "Der_Honigdachs won by checkmate"]

1. c4 {[%clk 0:03:00]} 1... e5 {[%clk 0:02:59.3]} 2. g3 {[%clk 0:02:57.4]} 2...
Nf6 {[%clk 0:02:58.7]} 3. Bg2 {[%clk 0:02:56.9]} 3... g6 {[%clk 0:02:55.9]} 4.
Nf3 {[%clk 0:02:55.4]} 4... Nc6 {[%clk 0:02:54.6]} 5. d4 {[%clk 0:02:49.3]} 5...
e4 {[%clk 0:02:40.6]} 6. Ng5 {[%clk 0:02:48.5]} 6... d5 {[%clk 0:02:40]} 7. cxd5
{[%clk 0:02:46.5]} 7... Qxd5 {[%clk 0:02:38.9]} 8. Nc3 {[%clk 0:02:41.6]} 8...
Bb4 {[%clk 0:02:32.1]} 9. O-O {[%clk 0:02:38.8]} 9... Bxc3 {[%clk 0:02:27.3]}
10. bxc3 {[%clk 0:02:39.5]} 10... Bf5 {[%clk 0:02:24.8]} 11. f3 {[%clk
0:02:31.3]} 11... O-O {[%clk 0:02:07.1]} 12. g4 {[%clk 0:02:23.2]} 12... Bd7
{[%clk 0:01:52.7]} 13. fxe4 {[%clk 0:02:20.3]} 13... Qc4 {[%clk 0:01:53]} 14.
Rxf6 {[%clk 0:02:13.6]} 14... Qxc3 {[%clk 0:01:52.5]} 15. Bf4 {[%clk 0:01:57.4]}
15... Nxd4 {[%clk 0:01:48.1]} 16. Rc1 {[%clk 0:01:34.8]} 16... Nxe2+ {[%clk
0:01:46.7]} 17. Qxe2 {[%clk 0:01:35.7]} 17... Qxf6 {[%clk 0:01:45]} 18. Rf1
{[%clk 0:01:28.6]} 18... c5 {[%clk 0:01:36.4]} 19. e5 {[%clk 0:01:25.5]} 19...
Qb6 {[%clk 0:01:30.3]} 20. Ne4 {[%clk 0:01:16.6]} 20... Bb5 {[%clk 0:01:29.4]}
21. Nf6+ {[%clk 0:01:16.6]} 21... Kg7 {[%clk 0:01:27.3]} 22. Qe3 {[%clk
0:01:17.3]} 22... Bxf1 {[%clk 0:01:25.2]} 23. Bh6+ {[%clk 0:00:54.4]} 23... Kh8
{[%clk 0:01:24.6]} 24. Bxf8 {[%clk 0:00:43.4]} 24... Bd3 {[%clk 0:00:54.7]} 25.
Bxc5 {[%clk 0:00:30.2]} 25... Qb1+ {[%clk 0:00:53.4]} 26. Kf2 {[%clk 0:00:31]}
26... Qc2+ {[%clk 0:00:52.8]} 27. Kg3 {[%clk 0:00:29.7]} 27... Rc8 {[%clk
0:00:51.5]} 28. Qh6 {[%clk 0:00:25.3]} 28... g5 {[%clk 0:00:35.4]} 29. Bf8
{[%clk 0:00:24.1]} 29... Qf2+ {[%clk 0:00:20.8]} 30. Kxf2 {[%clk 0:00:23.4]}
30... Rc2+ {[%clk 0:00:21.4]} 31. Ke3 {[%clk 0:00:23.1]} 31... Rxg2 {[%clk
0:00:17]} 32. Qg7# {[%clk 0:00:22.5]} 1-0